bitfinex/quotes_SOLUSD_20260310
["timestamp","ask_amount","ask_price","bid_price","bid_amount"]
[1773130684059,11.51039388,86.878,86.85,10.90794584]
[1773130684259,11.51039388,86.878,86.85,12.67256151]
[1773130684678,11.51039388,86.878,86.851,1.76461567]
[1773130685176,11.51039388,86.878,86.85,10.90794584]
[1773130685177,1.79005709,86.911,86.871,1.76461567]
[1773130685476,1.79005709,86.911,86.852,40.29843871]
[1773130685477,11.5060234,86.911,86.89,10.90794584]
[1773130685679,11.5060234,86.911,86.881,1.76461567]
[1773130685861,1.79005709,86.91,86.881,1.76461567]
[1773130686570,40.2710819,86.911,86.852,40.29843871]
[1773130686571,11.5060234,86.911,86.89,10.90794584]
[1773130687086,11.5060234,86.911,86.889,1.76461567]
[1773130687374,1.79005709,86.917,86.889,1.76461567]
[1773130687557,1.23814596,86.92,86.889,1.76461567]
[1773130688678,40.26783864,86.918,86.889,1.76461567]
[1773130689063,10.90794584,86.91,86.88,1.76461567]
[1773130689464,11.50628818,86.909,86.88,1.76461567]
[1773130689770,11.50628818,86.909,86.881,1.76461567]
[1773130689969,11.50575485,86.914,86.89,10.90794584]
[1773130690163,11.50575485,86.914,86.882,1.76461567]
[1773130691174,28.76274189,86.918,86.883,11.50973147]
[1773130691477,11.50443495,86.923,86.891,1.76461567]
[1773130691682,11.50443495,86.923,86.901,1.76461567]
[1773130694162,40.26298651,86.929,86.901,1.76461567]
[1773130695561,11.5036409,86.929,86.911,1.76461567]
[1773130696277,39.66344576,86.94,86.911,1.76461567]
[1773130697693,28.75549992,86.94,86.911,1.76461567]
[1773130698898,0.63405344,86.972,86.931,1.76461567]
[1773130699187,0.63405344,86.972,86.93,10.90794584]
[1773130699188,11.49834998,86.969,86.94,10.90794584]
[1773130699389,0.63405344,86.968,86.939,1.76461567]
[1773130699568,0.63405344,86.959,86.921,1.76461567]
[1773130701574,0.63904361,86.957,86.921,1.76461567]
[1773130702879,0.63904361,86.957,86.92,10.90794584]
[1773130703881,0.64625886,86.955,86.921,1.76461567]
[1773130705758,1.79005709,86.949,86.91,10.89443886]
[1773130706474,1.79005709,86.949,86.92,10.89443886]
[1773130707283,40.25116727,86.954,86.92,10.89443886]
[1773130707585,40.25116727,86.954,86.93,10.89443886]
[1773130707770,28.75083377,86.954,86.931,1.76461567]
[1773130709678,11.4998045,86.958,86.941,1.76461567]
[1773130710277,11.49782116,86.973,86.941,1.76461567]
[1773130710869,1.79005709,86.972,86.941,1.76461567]
[1773130712493,11.4958385,86.988,86.961,1.76461567]
[1773130712676,0.2,86.99,86.98,10.89443886]
[1773130712873,0.2,86.99,86.981,1.76461567]
[1773130713096,1.79005709,87.014,86.981,1.76461567]
[1773130713885,1.83121953,87.011,86.981,1.76461567]
[1773130714887,11.49293184,87.01,86.981,1.76461567]
[1773130715085,11.49293184,87.01,86.991,1.73390728]
[1773130715595,11.49174318,87.019,87.001,1.73390728]
[1773130716986,0.2,87.02,87.011,1.73390728]
[1773130717298,11.49050812,87.029,87.011,1.73390728]
[1773130717770,11.49050812,87.029,86.956,91.99960932]
[1773130717771,1.83121953,87.019,86.965,1.73390728]
[1773130717974,143.63036954,87.029,86.95,11.50086256]
[1773130717975,1.83121953,87.009,86.95,11.50086256]
[1773130718174,1.83121953,86.999,86.96,10.89443886]
[1773130719286,10.89443886,86.99,86.95,22.39530142]
[1773130719600,1.83121953,86.989,86.95,22.39530142]
[1773130720087,1.83121953,86.989,86.96,10.89443886]
[1773130720867,1.83121953,86.989,86.96,12.62834614]
[1773130721485,11.4958385,86.988,86.96,12.62834614]
[1773130721785,1.83121953,86.987,86.96,1.73390728]
[1773130722400,1.83121953,86.987,86.96,12.62834614]
[1773130722776,11.49610282,86.986,86.961,1.73390728]
[1773130725100,57.45942534,87.018,86.961,1.73390728]
[1773130725101,11.49385653,87.003,86.981,1.73390728]
[1773130725291,1.83121953,87.015,86.99,10.89443886]
[1773130725483,1.83121953,87.015,86.981,1.73390728]
[1773130727226,1.83121953,87.009,86.971,1.73390728]
[1773130727387,40.22341232,87.014,86.99,10.89443886]
[1773130727881,1.83121953,87.013,86.981,1.73390728]
[1773130728267,1.83121953,87.013,86.98,10.89443886]
[1773130728268,40.22341232,87.014,86.99,10.89443886]
[1773130728591,11.09443886,87.03,87.001,1.73390728]
[1773130728592,11.49095087,87.025,87.001,1.73390728]
[1773130728793,11.49095087,87.025,87.01,10.89443886]
[1773130728976,11.49095087,87.025,87.001,1.73390728]
[1773130729495,11.49042273,87.029,87.001,1.73390728]
[1773130730186,40.21647956,87.029,87.001,1.73390728]
[1773130730381,1.83121953,87.028,87.001,1.73390728]
[1773130731091,1.83121953,87.028,86.967,28.74644927]
[1773130731303,1.83121953,87.028,87.0,10.89443886]
[1773130731607,1.83121953,87.026,87.0,10.89443886]
[1773130734688,40.21832806,87.025,87.0,10.89443886]
[1773130734889,1.8214628,87.024,87.0,10.89443886]
[1773130735583,1.8214628,87.024,87.0,4.05950489]
[1773130736107,1.8214628,87.024,87.01,4.05950489]
[1773130736780,11.49121496,87.023,87.01,4.05950489]
[1773130737274,1.8214628,87.029,87.01,4.05950489]
[1773130739281,11.49055476,87.028,87.011,1.15972463]
[1773130739481,10.73231282,87.028,87.011,1.15972463]
[1773130739714,10.73231282,87.028,87.01,4.05950489]
[1773130740097,12.55377562,87.028,87.01,4.05950489]
[1773130740292,12.55377562,87.028,87.002,0.40148269]
[1773130740496,1.8214628,87.027,87.0,4.05950489]
[1773130740686,1.8214628,87.027,87.01,4.05950489]
[1773130741701,11.49081883,87.026,86.994,0.40696604]
[1773130741899,11.49081883,87.026,87.01,4.05950489]
[1773130742226,1.8214628,87.025,87.0,4.05950489]
[1773130745910,0.2,87.03,87.01,4.05950489]
[1773130746202,0.2,87.03,87.012,0.44346317]
[1773130746389,0.2,87.03,87.02,4.05950489]
[1773130747790,61.12255313,87.065,87.02,4.05950489]
[1773130747791,11.48778274,87.049,87.021,0.44843285]
[1773130748098,13.33686914,87.056,87.04,4.05950489]
[1773130748307,13.33686914,87.056,87.028,0.45334352]
[1773130748308,13.33686914,87.056,87.03,4.05950489]
[1773130748684,13.33686914,87.056,87.04,4.05950489]
[1773130749088,1.85001011,87.076,87.05,4.05950489]
[1773130749483,1.85001011,87.076,87.041,0.45816969]
[1773130749807,1.85001011,87.076,87.05,4.05950489]
[1773130750007,13.33436267,87.075,87.05,4.05950489]
[1773130750708,1.85001011,87.074,87.05,4.05950489]
[1773130752217,1.85001011,87.072,87.05,4.05950489]
[1773130753306,11.48409074,87.077,87.06,4.05950489]
[1773130753487,11.48409074,87.077,87.059,0.47702283]
[1773130753488,0.2,87.08,87.07,4.05950489]
[1773130753689,11.48382503,87.079,87.07,4.05950489]
[1773130753889,11.00237257,87.079,87.07,4.05950489]
[1773130756917,0.2,87.08,87.07,4.05950489]
[1773130757295,11.48329022,87.084,87.07,4.05950489]
[1773130757496,11.48092444,87.101,87.071,11.48488015]
[1773130757794,11.48092444,87.101,87.09,4.05950489]
[1773130758007,1.93812957,87.117,87.09,4.05950489]
[1773130758195,1.93812957,87.117,87.08,4.05950489]
[1773130758196,1.93812957,87.117,87.1,4.05950489]
[1773130758606,1.93812957,87.117,87.09,4.05950489]
[1773130759109,1.93812957,87.115,87.09,4.05950489]
[1773130759417,11.47894761,87.116,87.1,4.05950489]
[1773130759607,40.17631663,87.116,87.1,4.05950489]
[1773130759995,11.47894761,87.116,87.1,4.05950489]
[1773130760199,11.45035727,87.116,87.1,4.05950489]
[1773130761910,1.95242474,87.115,87.09,4.05950489]
[1773130762120,1.95242474,87.115,87.04,4.05950489]
[1773130762295,1.95242474,87.115,87.08,4.05950489]
[1773130762897,1.95242474,87.115,87.09,4.05950489]
[1773130763317,1.95242474,87.113,87.09,4.05950489]
[1773130763513,11.47921114,87.114,87.1,4.05950489]
[1773130763915,11.47921114,87.114,87.084,11.48308639]
[1773130764127,11.47921114,87.114,87.09,4.05950489]
[1773130764807,11.47921114,87.114,87.1,4.05950489]
[1773130765011,1.95242474,87.117,87.1,4.05950489]
[1773130765508,1.95242474,87.117,87.086,0.02258895]
[1773130765509,11.47894761,87.116,87.086,0.02258895]
[1773130765709,11.47894761,87.116,87.1,4.05950489]
[1773130766817,1.95242474,87.115,87.09,4.05950489]
[1773130767421,1.95242474,87.115,87.08,4.05950489]
[1773130767714,1.95242474,87.113,87.074,11.48447812]
[1773130767914,1.95242474,87.113,87.074,0.03543091]
[1773130768117,1.95242474,87.113,87.08,4.05219228]
[1773130768711,1.95242474,87.109,87.07,4.05219228]
[1773130769616,1.95242474,87.109,87.09,4.05219228]
[1773130769812,28.69457834,87.125,87.08,0.03961324]
[1773130769813,1.95242474,87.124,87.1,4.05219228]
[1773130770206,1.95242474,87.123,87.1,4.05219228]
[1773130771523,40.17262751,87.124,87.11,4.05219228]
[1773130771726,11.47789357,87.124,87.11,4.05219228]
[1773130772247,11.47789357,87.124,87.1,4.05219228]
[1773130772724,11.47789357,87.124,87.081,28.7089032]
[1773130772725,1.95242474,87.123,87.089,0.05584507]
[1773130772916,1.95242474,87.123,87.1,4.05219228]
[1773130775126,11.47815706,87.122,87.1,4.05219228]
[1773130776126,13.4305818,87.122,87.1,4.05219228]
[1773130776329,1.95242474,87.121,87.1,4.05219228]
[1773130777510,0.2,87.13,87.111,0.07509426]
[1773130777820,0.2,87.13,87.12,4.05219228]
[1773130779438,11.4772349,87.129,87.084,3.69383402]
[1773130779609,11.4772349,87.129,87.11,4.05219228]
[1773130780128,11.4772349,87.129,87.12,4.05219228]
[1773130780310,1.95242474,87.128,87.11,4.05219228]
[1773130780519,1.95242474,87.128,87.1,4.05219228]
[1773130781017,1.95242474,87.119,87.081,11.48356128]
[1773130781216,1.95242474,87.119,87.09,4.05219228]
[1773130781929,1.95242474,87.117,87.08,4.05219228]
[1773130782135,1.95242474,87.117,87.081,0.09324152]
[1773130783306,1.95242474,87.117,87.09,4.05219228]
[1773130783505,11.4780364,87.123,87.1,4.05219228]
[1773130783716,11.47789357,87.124,87.1,4.05219228]
[1773130784028,1.95242474,87.121,87.09,4.05219228]
[1773130784223,1.95242474,87.119,87.08,4.05219228]
[1773130785529,1.95242474,87.117,87.08,4.05219228]
[1773130786632,1.95242474,87.117,87.09,4.05219228]
[1773130787144,1.95242474,87.117,87.1,4.05219228]
[1773130787317,11.47818656,87.122,87.1,4.05219228]
[1773130788834,13.4306113,87.122,87.1,4.05219228]
[1773130789241,1.95242474,87.121,87.1,4.05219228]
[1773130790548,11.4772349,87.129,87.11,4.05219228]
[1773130791013,1.95318954,87.128,87.094,11.48179265]
[1773130791218,1.95318954,87.128,87.1,4.05219228]
[1773130791419,1.95318954,87.126,87.1,4.05219228]
[1773130792316,11.47776183,87.125,87.09,4.05219228]
[1773130792548,1.95318954,87.124,87.09,4.05219228]
[1773130792921,1.95318954,87.119,87.081,11.48356128]
[1773130793445,1.95318954,87.119,87.09,4.05219228]
[1773130793816,1.95318954,87.117,87.09,4.05219228]
[1773130796737,1.95318954,87.115,87.09,4.05219228]
[1773130797235,1.95318954,87.115,87.083,0.14493936]
[1773130797432,1.95318954,87.115,87.09,4.05219228]
[1773130798235,11.47894761,87.116,87.1,4.05219228]
[1773130798433,13.43213715,87.116,87.091,0.14787118]
[1773130798632,13.43213715,87.116,87.09,4.05219228]
[1773130798633,1.95318954,87.115,87.09,4.05219228]
[1773130799025,1.95318954,87.113,87.09,4.05219228]
[1773130799646,1.95318954,87.113,87.083,11.48323571]
[1773130800739,1.95318954,87.109,87.084,0.15639948]
[1773130801842,28.69690995,87.118,87.08,4.05219228]
[1773130801843,1.95318954,87.107,87.08,4.05219228]
[1773130802024,1.95318954,87.107,87.081,11.48356128]
[1773130803946,1.95318954,87.107,87.081,11.65096912]
[1773130804347,1.95318954,87.107,87.082,0.16740784]
[1773130804648,2.03613446,87.127,87.1,4.05219228]
[1773130804834,2.03613446,87.126,87.1,4.05219228]
[1773130805029,2.03613446,87.126,87.081,40.19246448]
[1773130805030,2.03613446,87.126,87.09,4.05219228]
[1773130808637,2.03613446,87.124,87.09,15.53450428]
[1773130809654,2.03613446,87.124,87.086,11.48287728]
[1773130809842,2.03613446,87.124,87.09,4.05219228]
[1773130810743,11.47802532,87.123,87.09,4.05219228]
[1773130810957,2.03613446,87.122,87.09,4.05219228]
[1773130811865,2.03613446,87.119,87.088,11.48263825]
[1773130812239,2.03613446,87.119,87.077,0.02048869]
[1773130812455,2.03613446,87.119,87.081,0.02048869]
[1773130813136,11.47868408,87.118,87.081,0.02048869]
[1773130813337,2.03613446,87.109,87.08,4.05219228]
[1773130814055,2.03613446,87.099,87.071,0.02356185]
[1773130814254,2.03613446,87.107,87.071,0.02356185]
[1773130814455,40.17539428,87.118,87.059,40.2026212]
[1773130814456,11.47868408,87.118,87.081,0.02356185]
[1773130814662,2.03613446,87.121,87.091,0.02356185]
[1773130815658,2.03613446,87.119,87.081,11.48356128]
[1773130818763,2.03613446,87.117,87.081,0.02954958]
[1773130821358,2.03613446,87.109,87.074,11.48441041]
[1773130821545,2.03613446,87.109,87.081,0.03395395]
[1773130821744,2.03613446,87.109,87.05,45.95015274]
[1773130821745,2.03613446,87.109,87.067,11.48537269]
[1773130821960,2.03613446,87.099,87.062,11.48594556]
[1773130822764,2.03613446,87.099,87.07,4.05219228]
[1773130823158,2.03613446,87.099,87.063,0.03535304]
[1773130823346,11.48131989,87.098,87.063,0.03535304]
[1773130823668,2.03613446,87.097,87.063,0.03535304]
[1773130825665,2.03613446,87.095,87.07,4.05219228]
[1773130826470,2.03613446,87.095,87.063,0.03535304]
[1773130827466,2.03613446,87.089,87.05,4.05219228]
[1773130827669,2.03613446,87.087,87.051,11.48751881]
[1773130827847,2.03613446,87.087,87.051,11.53095585]
[1773130828350,2.03613446,87.087,87.06,4.05451859]
[1773130828566,2.03613446,87.087,87.061,0.04343704]
[1773130829671,2.03613446,87.087,87.051,11.48751881]
[1773130829868,2.03613446,87.085,87.052,0.04601811]
[1773130830078,2.03613446,87.085,87.06,4.05451859]
[1773130830274,2.03613446,87.085,87.052,0.04601811]
[1773130831173,2.03613446,87.085,87.051,11.48751881]
[1773130831555,2.03613446,87.079,87.04,4.05451859]
[1773130832066,2.03613446,87.077,87.041,11.48883859]
[1773130832260,2.03613446,87.077,87.05,4.05451859]
[1773130832976,2.03613446,87.085,87.061,0.04974908]
[1773130833768,13.51930013,87.084,87.061,0.04974908]
[1773130834851,13.51930013,87.084,87.061,11.53594841]
[1773130834852,2.03613446,87.084,87.061,11.53594841]
[1773130835555,2.03613446,87.084,87.061,11.48619933]
[1773130835956,2.03613446,87.082,87.057,11.48670942]
[1773130836459,2.03613446,87.082,87.051,11.48751881]
[1773130839796,11.48356128,87.081,87.051,11.48751881]
[1773130839956,2.03613446,87.079,87.051,11.48751881]
[1773130841074,2.03613446,87.079,87.045,11.48825484]
[1773130841471,2.03613446,87.079,87.05,4.05451859]
[1773130841677,2.03613446,87.079,87.045,11.48825484]
[1773130841872,2.03613446,87.079,87.036,0.0601746]
[1773130841873,2.03613446,87.067,87.031,11.49015867]
[1773130842681,2.03613446,87.059,87.031,11.49015867]
[1773130842983,40.19846556,87.068,87.041,0.06235933]
[1773130842984,2.03613446,87.067,87.041,0.06235933]
[1773130843181,11.48527587,87.068,87.031,11.49015867]
[1773130843182,13.51988497,87.08,87.051,0.06235933]
[1773130843384,2.03613446,87.079,87.051,0.06235933]
[1773130843678,2.03613446,87.079,87.04,4.05451859]
[1773130844064,2.03613446,87.077,87.042,0.0634361]
[1773130844268,2.03613446,87.077,87.041,40.21093507]
[1773130844269,11.48131989,87.098,87.061,1.99299853]
[1773130844465,40.18461962,87.098,87.068,1.99299853]
[1773130844668,40.18461962,87.098,87.061,1.99299853]
[1773130846269,2.01768868,87.095,87.07,4.05451859]
[1773130847479,2.01768868,87.095,87.07,6.04751712]
[1773130848077,28.70010021,87.108,87.071,1.99299853]
[1773130848078,13.49849379,87.102,87.071,1.99299853]
[1773130848379,2.01768868,87.101,87.073,1.99299853]
[1773130850261,2.01768868,87.11,87.081,1.99299853]
[1773130850488,2.01768868,87.118,87.09,4.05451859]
[1773130851400,2.01768868,87.118,87.088,1.99299853]
[1773130851694,2.01768868,87.118,87.081,1.99299853]
[1773130852593,2.01768868,87.109,87.079,11.48370084]
[1773130852790,2.01768868,87.109,87.074,30.70420968]
[1773130852791,2.01768868,87.099,87.074,11.48435783]
[1773130852996,2.01768868,87.099,87.075,1.99299853]
[1773130853579,40.17585545,87.117,87.064,11.48567947]
[1773130853580,2.01768868,87.089,87.064,11.48567947]
[1773130854163,40.17585545,87.117,87.065,1.99299853]
[1773130854164,4.05451859,87.1,87.065,1.99299853]
[1773130854382,2.01768868,87.099,87.071,1.99299853]
[1773130854583,2.01768868,87.097,87.072,11.48474825]
[1773130855982,11.48080534,87.102,87.073,1.99299853]
[1773130856187,2.01768868,87.101,87.073,1.99299853]
[1773130857390,1.89843301,87.099,87.068,1.91066477]
[1773130857692,1.89843301,87.099,87.071,1.91066477]
[1773130858391,1.89843301,87.105,87.081,1.91066477]
[1773130859381,1.89843301,87.103,87.072,1.91066477]
[1773130860180,1.89843301,87.103,87.08,5.96518336]
[1773130860381,28.69704844,87.117,87.08,5.96518336]
[1773130860382,11.4799975,87.109,87.081,1.91066477]
[1773130860579,13.37843051,87.109,87.081,1.91066477]
[1773130860886,1.89843301,87.108,87.081,1.91066477]
[1773130861479,1.89843301,87.099,87.07,4.05451859]
[1773130861900,1.89843301,87.089,87.06,4.05451859]
[1773130862099,1.89843301,87.089,87.06,5.96518336]
[1773130863595,1.89843301,87.089,87.061,13.48924854]
[1773130864496,1.88708841,87.087,87.061,13.48924854]
[1773130864694,1.88708841,87.087,87.061,11.48619933]
[1773130864895,1.88708841,87.087,87.062,2.00304921]
[1773130865499,1.88708841,87.109,87.072,11.48474825]
[1773130865704,1.88708841,87.109,87.081,2.00304921]
[1773130865918,1.88708841,87.115,87.091,2.00304921]
[1773130866086,1.88708841,87.115,87.1,4.05451859]
[1773130866286,1.88708841,87.115,87.091,2.00304921]
[1773130866493,11.47921114,87.114,87.091,2.00304921]
[1773130866692,1.88708841,87.113,87.091,2.00304921]
[1773130867202,1.88708841,87.113,87.09,4.05451859]
[1773130867407,1.88708841,87.109,87.08,4.05451859]
[1773130867811,1.88708841,87.107,87.082,2.00304921]
[1773130868587,1.88708841,87.107,87.081,11.48356128]
[1773130868588,1.88708841,87.125,87.1,4.05451859]
[1773130868782,1.88708841,87.125,87.1,6.0575678]
[1773130869204,1.88708841,87.125,87.101,2.00304921]
[1773130869819,11.47789357,87.124,87.091,2.00304921]
[1773130870009,1.88708841,87.123,87.093,11.48185469]
[1773130870390,1.88708841,87.119,87.086,11.48278304]
[1773130872519,1.88708841,87.119,87.1,4.05451859]
[1773130872706,1.88708841,87.126,87.1,4.05451859]
[1773130872903,1.88708841,87.126,87.1,6.0575678]
[1773130874213,1.88708841,87.126,87.101,2.00304921]
[1773130874617,0.2,87.14,87.121,1.97024724]
[1773130874815,0.2,87.14,87.13,4.05451859]
[1773130875313,28.68052799,87.168,87.13,4.05451859]
[1773130875314,1.88708841,87.16,87.131,1.97222829]
[1773130876216,1.88708841,87.16,87.105,3.69383402]
[1773130876217,1.88708841,87.189,87.151,1.97420727]
[1773130876392,1.88708841,87.188,87.16,4.05451859]
[1773130876596,11.46670641,87.209,87.181,1.97420727]
[1773130876907,11.46670641,87.209,87.18,4.05451859]
[1773130876908,1.88708841,87.208,87.18,4.05451859]
[1773130877916,11.46557661,87.218,87.19,4.05451859]
[1773130878118,11.46477108,87.224,87.201,1.97805034]
[1773130878328,11.46276321,87.239,87.211,1.97805034]
[1773130878614,1.88708841,87.229,87.19,4.05451859]
[1773130878817,1.88708841,87.229,87.2,4.05451859]
[1773130879114,1.88708841,87.219,87.188,1.97805034]
[1773130879420,1.88708841,87.219,87.19,6.03445063]
[1773130879717,1.88708841,87.219,87.19,4.05451859]
[1773130880311,1.88708841,87.219,87.189,1.98181989]
[1773130880510,1.88708841,87.219,87.19,4.05451859]
[1773130880708,1.88708841,87.217,87.186,11.46961933]
[1773130881124,1.88708841,87.217,87.18,4.05451859]
[1773130881125,1.88708841,87.199,87.139,1.9836546]
[1773130881312,1.88708841,87.199,87.16,4.05451859]
[1773130881499,1.88708841,87.189,87.15,4.05451859]
[1773130881705,1.88708841,87.189,87.151,1.9836546]
[1773130881899,1.88708841,87.189,87.15,4.05451859]
[1773130882414,1.88708841,87.179,87.15,4.05451859]
[1773130882598,1.88708841,87.177,87.14,17.51577469]
[1773130882798,1.88708841,87.177,87.15,4.05451859]
[1773130883001,1.88708841,87.177,87.141,1.98725413]
[1773130883217,45.84730109,87.247,87.16,4.05451859]
[1773130883218,1.88708841,87.186,87.16,4.05451859]
[1773130883425,1.88708841,87.186,87.151,1.98725413]
[1773130883426,11.46986293,87.185,87.151,1.98725413]
[1773130883628,1.88708841,87.184,87.151,1.98725413]
[1773130884424,21.93519835,87.194,87.151,1.98725413]
[1773130884601,4.05451859,87.19,87.151,1.98725413]
[1773130885014,4.05451859,87.18,87.151,1.98725413]
[1773130885229,4.05451859,87.17,87.144,11.47522731]
[1773130885603,11.46933672,87.189,87.144,11.47522731]
[1773130885804,4.05451859,87.18,87.151,2.00304921]
[1773130886018,4.05451859,87.18,87.15,4.05451859]
[1773130886213,11.47065233,87.179,87.144,11.47522731]
[1773130886427,1.88708841,87.178,87.145,2.00304921]
[1773130886824,1.88708841,87.178,87.14,4.05451859]
[1773130887026,1.88708841,87.159,87.13,15.53162176]
[1773130887329,1.88708841,87.159,87.13,17.53467097]
[1773130887507,1.88708841,87.159,87.131,2.00304921]
[1773130888408,1.88708841,87.159,87.133,2.00304921]
[1773130888729,11.47219933,87.168,87.141,2.00304921]
[1773130889307,103.20408645,87.206,87.141,2.00304921]
[1773130889308,1.88708841,87.178,87.141,2.00304921]
[1773130889507,1.88708841,87.176,87.141,2.00304921]
[1773130890534,11.47117866,87.175,87.15,4.04599127]
[1773130890706,1.88708841,87.189,87.161,2.00304921]
[1773130890907,1.88708841,87.198,87.151,11.47433764]
[1773130891129,1.88708841,87.198,87.16,4.04599127]
[1773130891435,1.88708841,87.189,87.16,4.04599127]
[1773130892514,45.8626024,87.218,87.142,2.00304921]
[1773130892515,11.47078391,87.178,87.142,2.00304921]
[1773130892731,1.88708841,87.177,87.16,4.04599127]
[1773130892916,1.88708841,87.177,87.15,4.04599127]
[1773130893932,1.88708841,87.177,87.14,6.04904048]
[1773130894134,1.88708841,87.177,87.15,4.04599127]
[1773130894514,40.14774369,87.178,87.122,2.05116768]
[1773130894515,1.94772414,87.169,87.122,2.05116768]
[1773130894720,1.94772414,87.167,87.14,4.04599127]
[1773130895133,1.94772414,87.167,87.15,4.04599127]
[1773130895840,1.94772414,87.167,87.141,2.05116768]
[1773130896021,103.21301159,87.199,87.124,40.17262751]
[1773130896022,1.94772414,87.183,87.16,4.04599127]
[1773130896726,11.47025762,87.182,87.16,4.04599127]
[1773130897117,45.86698851,87.209,87.16,4.04599127]
[1773130897118,1.94772414,87.201,87.171,2.05116768]
[1773130897435,108.72477569,87.239,87.19,4.04599127]
[1773130897436,1.94772414,87.228,87.19,4.04599127]
[1773130898342,1.94772414,87.219,87.18,4.04599127]
[1773130898846,1.94772414,87.217,87.19,4.04599127]
[1773130899615,1.94772414,87.217,87.2,4.04599127]
[1773130899942,1.94772414,87.217,87.19,4.04599127]
[1773130900359,10.04215274,87.218,87.2,4.04599127]
[1773130900651,11.46473447,87.224,87.201,2.05116768]
[1773130900944,11.46355163,87.233,87.21,4.04599127]
[1773130901330,1.94772414,87.232,87.203,2.05116768]
[1773130901843,1.94772414,87.229,87.203,2.05116768]
[1773130903241,11.46420874,87.228,87.203,2.05116768]
[1773130903744,1.94772414,87.219,87.183,2.05116768]
[1773130904046,1.94772414,87.219,87.19,4.04599127]
[1773130904226,4.04599127,87.2,87.173,2.05116768]
[1773130904436,0.2,87.24,87.173,2.05116768]
[1773130904617,1.94772414,87.239,87.201,2.05116768]
[1773130904823,1.94772414,87.238,87.201,2.05116768]
[1773130905250,1.94772414,87.238,87.21,6.09715895]
[1773130905741,1.94772414,87.238,87.21,2.05116768]
[1773130906137,4.04599127,87.23,87.202,11.46762688]
[1773130906315,1.94772414,87.229,87.192,2.05116768]
[1773130906517,4.04599127,87.22,87.192,2.05116768]
[1773130906943,1.94772414,87.219,87.192,2.05116768]
[1773130908022,1.94772414,87.217,87.184,13.52112382]
[1773130908342,1.94772414,87.209,87.172,2.05116768]
[1773130908640,1.94772414,87.209,87.181,2.05116768]
[1773130909433,1.94772414,87.229,87.191,2.05116768]
[1773130910035,11.46426004,87.228,87.2,6.09715895]
[1773130910236,11.46426004,87.228,87.2,2.05116768]
[1773130910541,1.94772414,87.229,87.201,2.0202136]
[1773130910719,4.04599127,87.22,87.193,2.0202136]
[1773130911038,1.95674941,87.227,87.193,2.0202136]
[1773130911244,1.95674941,87.227,87.201,2.0202136]
[1773130911847,1.95674941,87.209,87.18,10.82491365]
[1773130912148,1.95674941,87.209,87.18,12.84512725]
[1773130912149,11.4668379,87.208,87.18,12.84512725]
[1773130912321,11.4668379,87.208,87.18,2.0202136]
[1773130912939,11.46434016,87.227,87.191,2.0202136]
[1773130913246,10.82491365,87.22,87.191,2.0202136]
[1773130913451,11.46434016,87.227,87.181,2.0202136]
[1773130913452,10.82491365,87.2,87.181,2.0202136]
[1773130913631,1.95674941,87.209,87.181,2.0202136]
[1773130914242,11.4668379,87.208,87.181,2.0202136]
[1773130914450,13.42358731,87.208,87.181,2.0202136]
[1773130914946,10.82491365,87.2,87.181,2.0202136]
[1773130915655,10.82491365,87.2,87.175,2.0202136]
[1773130915841,10.82491365,87.19,87.169,11.47186429]
[1773130916042,1.95674941,87.188,87.163,11.47273748]
[1773130917250,11.46959982,87.187,87.163,2.0202136]
[1773130918042,10.82491365,87.17,87.151,2.0202136]
[1773130918245,11.46959982,87.187,87.151,2.0202136]
[1773130919246,10.82491365,87.19,87.151,2.0202136]
[1773130919452,11.46933672,87.189,87.153,2.0202136]
[1773130919851,1.95674941,87.179,87.152,11.47420598]
[1773130920035,1.95674941,87.179,87.153,2.0202136]
[1773130920353,10.82491365,87.17,87.145,2.0202136]
[1773130921241,1.95674941,87.172,87.145,2.0202136]
[1773130921840,1.95674941,87.168,87.132,2.0202136]
[1773130922553,1.95674941,87.168,87.141,2.0202136]
[1773130923766,1.95674941,87.168,87.142,11.47552271]
[1773130923937,1.95674941,87.168,87.142,13.62073554]
[1773130924139,13.42886398,87.168,87.143,2.14521283]
[1773130924454,2.10947247,87.167,87.142,11.47552271]
[1773130924662,10.82491365,87.15,87.125,2.14521283]
[1773130924951,11.47211457,87.168,87.121,2.14521283]
[1773130924952,10.82491365,87.16,87.121,2.14521283]
[1773130925150,2.10947247,87.181,87.141,2.14521283]
[1773130925451,2.10947247,87.181,87.117,97.56987524]
[1773130925452,2.10947247,87.179,87.151,2.14521283]
[1773130925953,11.47078391,87.178,87.151,13.61949012]
[1773130926134,11.47078391,87.178,87.152,2.14521283]
[1773130927241,13.58025638,87.178,87.153,11.47407432]
[1773130927429,13.58025638,87.178,87.152,2.14521283]
[1773130927839,2.10947247,87.177,87.154,2.14521283]
[1773130929031,13.58051954,87.176,87.146,2.14521283]
[1773130929232,10.82491365,87.17,87.146,2.14521283]
[1773130929451,10.82491365,87.17,87.141,11.47565439]
[1773130929452,2.10947247,87.169,87.141,11.47565439]
[1773130930135,11.47104707,87.176,87.142,2.14521283]
[1773130930741,2.10947247,87.169,87.142,2.14521283]
[1773130931545,2.10947247,87.168,87.133,2.14521283]
[1773130932360,2.10947247,87.168,87.141,2.14521283]
[1773130932747,11.47201986,87.169,87.141,2.14521283]